{"text_format":"1","workbook":"xlsx","n_sheets":1,"sheets":["СП"],"not_rendered":{"charts":0,"images":0,"macros":1,"external_links":1,"defined_names":16,"comments":0,"pivot_tables":0},"unopened":[],"bounds":{"document_bytes":16777216,"sheet_cells":100000,"rows_first":2000,"rows_last":500,"rows_between":2000,"halvings":0,"cell_chars":16384,"cell_head_chars":4096},"cells_cut":0,"cells_raw":0,"read":"whole","date_system":"1900"}

{"sheet":"СП","index":0,"n_rows":34,"n_cols":10,"rows_kept":34,"cut":false,"hidden":false,"merged":[[28,1,28,2],[29,1,29,2],[30,1,30,2],[32,1,32,2],[33,1,33,2],[25,1,25,2],[26,1,26,2],[27,1,27,2],[16,1,16,2],[17,1,17,2],[18,1,18,2],[19,1,19,2],[20,1,20,2],[21,1,24,1],[15,1,15,2],[4,1,4,2],[5,1,5,2],[6,1,6,2],[7,1,7,2],[8,1,8,2],[9,1,9,2],[10,1,10,2],[11,1,11,2],[12,1,12,2],[13,1,13,2],[14,1,14,2]]}
[1]
[2]
[3,null,"Количество аналогов",6]
[4]
[5,"Параметры сравнения",null,"Объект оценки","Объект сравнения №1","Объект сравнения №2","Объект сравнения №3","Объект сравнения №4","Объект сравнения №5","Объект сравнения №6"]
[6,"Источник информации"]
[null,"Телефон"]
[null,"Стоимость предложения"]
[null,"Стоимость предложения 1 м²",null,null,{"$f":"E8/E12","v":0},0,0,0,0,0]
[null,"Корректировка на торг",null,null,0.9,0.9,0.9,0.9,0.9,0.9]
[null,"Откорректирована стоимость 1 м²",null,null,{"$f":"E9*E10","v":0},0,0,0,0,0]
[null,"Общая площадь недвижимости м²",null,63,{"$f":"'[1]А 1'!D3","v":63},{"$f":"'[1]А 1'!D8","v":64},{"$f":"'[1]А 1'!D13","v":65},{"$f":"'[1]А 1'!D18","v":66},{"$f":"'[1]А 1'!D23","v":67},{"$f":"'[1]А 1'!D28","v":68}]
[null,"Корректировка на площадь (Sa / So) 0,1",null,null,{"$f":"(E12/$D$12)^0.1","v":1},1.0015760764017665,1.0031301430492703,1.0046628389213812,1.0061747751084489,1.0076665364249988]
[null,"Откорректирована стоимость 1 м²",null,null,{"$f":"E11*E13","v":0},0,0,0,0,0]
[null,"Месторасположение"]
[null,"Район"]
[null,"Микрорайон / улица"]
[null,"Расположение в пределах населенного пункта",null,"Центральная часть","Срединная зона","Срединная зона","Срединная зона","Срединная зона","Срединная зона","Срединная зона"]
[null,"Транспортная доступность",null,"високая","средняя","средняя","средняя","средняя","средняя","средняя"]
[null,"Окружение и уровень благоустройства",null,"средний","средний","средний","средний","средний","средний","средний"]
[null,"Другие факторы расположения"]
[null,"Баллы","Расположение в пределах населенного пункта",4,2,2,2,2,2,2]
[null,null,"транспортная доступность",5,4,4,4,4,4,4]
[null,null,"Окружение и уровень благоустройства",4,4,4,4,4,4,4]
[null,null,"Другие факторы расположения","","","","","","",""]
[null,"Агрегированная оценка расположения",null,4.3,3.2,3.2,3.2,4.3,4.3,4.3]
[null,"Корректировка на размещение",null,null,1.26,1.26,1.26,1.26,1,1]
[null,"Откорректирована стоимость 1 м²",null,null,1170.0000000000002,1171.2806228470909,1172.5511078245763,1173.8115278015991,932.58885871992049,933.57340874669023]
[null,"Присутствие дополнительных преимуществ",null,"отсутствуют","отсутствуют","отсутствуют","отсутствуют","отсутствуют","отсутствуют","отсутствуют"]
[null,"Корректировка на присутствие дополнительных преимуществ",null,null,1,1,1,1,1,1]
[null,"Откорректирована стоимость 1 м²",null,null,1287.0000000000005,1288.4086851318,1388.8867872182104,1173.8115278016001,1388.8867872182104,1388.8867872182104]
[]
[null,"Середня ринкова вартість 1 м² без ПДВ",null,{"$f":"AVERAGE(E31:J31)","v":1319.3134290980054}]
[null,"Ринкова вартість об'єкта оцінки без ПДВ",null,{"$f":"ROUND(D12*D33,-2)","v":83100}]